[Event "Titled Tuesday Blitz November 01 Late 2022"]
[White "Ozdemir, Serhan Berat"]
[Black "Djordjevic, Vuk"]
[WhiteFideId "6374611"]
[BlackFideId "902098"]
[WhiteElo "2558"]
[BlackElo "2798"]
[Result "0-1"]
[Round "04"]
[TimeControl "180+1"]
[Date "2022.11.02"]
[WhiteClock "0:00:02"]
[BlackClock "0:00:10"]

1. e4 {[%clk 0:03:00]}  d5 {[%clk 0:02:59]} 2. exd5 {[%clk 0:03:00]}  Qxd5 {[%clk 0:03:00]} 3. Nc3 {[%clk 0:03:00]}  Qd6 {[%clk 0:03:01]} 4. d4 {[%clk 0:03:00]}  Nf6 {[%clk 0:03:00]} 5. g3 {[%clk 0:03:00]}  c6 {[%clk 0:03:00]} 6. Bg2 {[%clk 0:02:58]}  Bg4 {[%clk 0:03:00]} 7. Nge2 {[%clk 0:02:57]}  e6 {[%clk 0:03:00]} 8. h3 {[%clk 0:02:55]}  Bh5 {[%clk 0:02:59]} 9. O-O {[%clk 0:02:55]}  Be7 {[%clk 0:02:51]} 10. Bf4 {[%clk 0:02:54]}  Qd8 {[%clk 0:02:52]} 11. g4 {[%clk 0:02:35]}  Bg6 {[%clk 0:02:28]} 12. Ng3 {[%clk 0:02:35]}  Na6 {[%clk 0:01:53]} 13. Re1 {[%clk 0:02:20]}  Nb4 {[%clk 0:01:53]} 14. Rc1 {[%clk 0:02:13]}  Nfd5 {[%clk 0:01:17]} 15. Bd2 {[%clk 0:01:47]}  Bg5 {[%clk 0:01:09]} 16. Nce4 {[%clk 0:01:31]}  Bxd2 {[%clk 0:00:35]} 17. Qxd2 {[%clk 0:01:32]}  a5 {[%clk 0:00:35]} 18. a3 {[%clk 0:01:30]}  Na6 {[%clk 0:00:33]} 19. c4 {[%clk 0:01:26]}  Ne7 {[%clk 0:00:31]} 20. h4 {[%clk 0:01:12]}  Bxe4 {[%clk 0:00:26]} 21. Nxe4 {[%clk 0:01:09]}  h5 {[%clk 0:00:26]} 22. Qg5 {[%clk 0:00:53]}  Ng6 {[%clk 0:00:17]} 23. gxh5 {[%clk 0:00:52]}  Qxg5 {[%clk 0:00:13]} 24. hxg5 {[%clk 0:00:52]}  Rxh5 {[%clk 0:00:14]} 25. Bf3 {[%clk 0:00:43]}  Rh3 {[%clk 0:00:11]} 26. Bg2 {[%clk 0:00:43]}  Rh5 {[%clk 0:00:10]} 27. Bf3 {[%clk 0:00:34]}  Rh3 {[%clk 0:00:06]} 28. Bg2 {[%clk 0:00:20]}  Rb3 {[%clk 0:00:06]} 29. Rc2 {[%clk 0:00:14]}  Rd8 {[%clk 0:00:06]} 30. Re3 {[%clk 0:00:13]}  a4 {[%clk 0:00:05]} 31. Rd2 {[%clk 0:00:07]}  Nf4 {[%clk 0:00:04]} 32. Bf1 {[%clk 0:00:04]}  Ke7 {[%clk 0:00:04]} 33. c5 {[%clk 0:00:03]}  Nc7 {[%clk 0:00:04]} 34. Rxb3 {[%clk 0:00:03]}  axb3 {[%clk 0:00:05]} 35. Nd6 {[%clk 0:00:03]}  b6 {[%clk 0:00:03]} 36. Bc4 {[%clk 0:00:03]}  bxc5 {[%clk 0:00:04]} 37. dxc5 {[%clk 0:00:04]}  Rb8 {[%clk 0:00:03]} 38. Kh2 {[%clk 0:00:01]}  Ncd5 {[%clk 0:00:04]} 39. Kg3 {[%clk 0:00:02]}  Rh8 {[%clk 0:00:04]} 40. Bxd5 {[%clk 0:00:01]}  Nxd5 {[%clk 0:00:05]} 41. Rd3 {[%clk 0:00:01]}  Rh5 {[%clk 0:00:05]} 42. Rxb3 {[%clk 0:00:01]}  Rxg5+ {[%clk 0:00:06]} 43. Kf3 {[%clk 0:00:02]}  Rh5 {[%clk 0:00:06]} 44. Rb7+ {[%clk 0:00:03]}  Kf6 {[%clk 0:00:06]} 45. Rxf7+ {[%clk 0:00:03]}  Ke5 {[%clk 0:00:05]} 46. Nc4+ {[%clk 0:00:04]}  Kd4 {[%clk 0:00:05]} 47. Nd6 {[%clk 0:00:04]}  Kxc5 {[%clk 0:00:05]} 48. Ne4+ {[%clk 0:00:04]}  Kd4 {[%clk 0:00:06]} 49. Nd6 {[%clk 0:00:05]}  Ke5 {[%clk 0:00:06]} 50. Nc4+ {[%clk 0:00:05]}  Kd4 {[%clk 0:00:06]} 51. Nd6 {[%clk 0:00:05]}  g6 {[%clk 0:00:07]} 52. Rf8 {[%clk 0:00:05]}  Rh3+ {[%clk 0:00:07]} 53. Kg2 {[%clk 0:00:05]}  Rb3 {[%clk 0:00:07]} 54. Rc8 {[%clk 0:00:04]}  c5 {[%clk 0:00:07]} 55. Nf7 {[%clk 0:00:04]}  Rxb2 {[%clk 0:00:07]} 56. Ng5 {[%clk 0:00:04]}  Nf4+ {[%clk 0:00:04]} 57. Kf3 {[%clk 0:00:04]}  Nd3 {[%clk 0:00:03]} 58. Nxe6+ {[%clk 0:00:04]}  Kd5 {[%clk 0:00:03]} 59. Nf4+ {[%clk 0:00:04]}  Nxf4 {[%clk 0:00:04]} 60. Kxf4 {[%clk 0:00:05]}  Rxf2+ {[%clk 0:00:04]} 61. Ke3 {[%clk 0:00:05]}  Ra2 {[%clk 0:00:04]} 62. Rd8+ {[%clk 0:00:05]}  Kc4 {[%clk 0:00:05]} 63. Ra8 {[%clk 0:00:05]}  Ra1 {[%clk 0:00:05]} 64. Ra5 {[%clk 0:00:04]}  g5 {[%clk 0:00:05]} 65. Kf3 {[%clk 0:00:04]}  Kd4 {[%clk 0:00:05]} 66. Kg4 {[%clk 0:00:03]}  Rg1+ {[%clk 0:00:05]} 67. Kf3 {[%clk 0:00:03]}  c4 {[%clk 0:00:06]} 68. Ra7 {[%clk 0:00:03]}  c3 {[%clk 0:00:06]} 69. Rd7+ {[%clk 0:00:04]}  Kc4 {[%clk 0:00:06]} 70. Rc7+ {[%clk 0:00:03]}  Kb3 {[%clk 0:00:07]} 71. Rb7+ {[%clk 0:00:03]}  Kxa3 {[%clk 0:00:07]} 72. Ra7+ {[%clk 0:00:04]}  Kb2 {[%clk 0:00:07]} 73. Kf2 {[%clk 0:00:04]}  Rg4 {[%clk 0:00:07]} 74. Kf3 {[%clk 0:00:03]}  Rf4+ {[%clk 0:00:07]} 75. Ke3 {[%clk 0:00:03]}  Kc2 {[%clk 0:00:08]} 76. Rb7 {[%clk 0:00:04]}  Rf5 {[%clk 0:00:08]} 77. Re7 {[%clk 0:00:04]}  g4 {[%clk 0:00:08]} 78. Ke4 {[%clk 0:00:03]}  Rg5 {[%clk 0:00:08]} 79. Kf4 {[%clk 0:00:03]}  Rg8 {[%clk 0:00:08]} 80. Kg3 {[%clk 0:00:04]}  Rd8 {[%clk 0:00:06]} 81. Rc7 {[%clk 0:00:05]}  Kd2 {[%clk 0:00:06]} 82. Rf7 {[%clk 0:00:02]}  c2 {[%clk 0:00:06]} 83. Rf2+ {[%clk 0:00:03]}  Kc3 {[%clk 0:00:07]} 84. Rf7 {[%clk 0:00:01]}  Rd3+ {[%clk 0:00:08]} 85. Kxg4 {[%clk 0:00:01]}  c1=Q {[%clk 0:00:08]} 86. Rc7+ {[%clk 0:00:02]}  Kd2 {[%clk 0:00:09]} 87. Rxc1 {[%clk 0:00:02]}  Kxc1 {[%clk 0:00:10]} 0-1


[Site "https://www.chess.com"]

[Event "Titled Tuesday Blitz November 01 Late 2022"]
[White "Ozer, Omer Faruk"]
[Black "Ibarra Jerez, Jose Carlos"]
[WhiteFideId "6354564"]
[BlackFideId "2226332"]
[WhiteElo "2612"]
[BlackElo "2915"]
[Result "1-0"]
[Round "04"]
[TimeControl "180+1"]
[Date "2022.11.02"]
[WhiteClock "0:00:05"]
[BlackClock "0:00:04"]

1. e4 {[%clk 0:02:53]}  c5 {[%clk 0:03:00]} 2. Nf3 {[%clk 0:02:52]}  e6 {[%clk 0:03:01]} 3. d3 {[%clk 0:02:52]}  Nc6 {[%clk 0:03:01]} 4. Nbd2 {[%clk 0:02:52]}  g6 {[%clk 0:03:01]} 5. g3 {[%clk 0:02:49]}  Bg7 {[%clk 0:03:02]} 6. Bg2 {[%clk 0:02:50]}  Nge7 {[%clk 0:03:02]} 7. O-O {[%clk 0:02:51]}  O-O {[%clk 0:03:02]} 8. Re1 {[%clk 0:02:49]}  e5 {[%clk 0:03:02]} 9. c3 {[%clk 0:02:44]}  d6 {[%clk 0:03:03]} 10. a3 {[%clk 0:02:44]}  h6 {[%clk 0:03:03]} 11. b4 {[%clk 0:02:43]}  a6 {[%clk 0:03:03]} 12. Bb2 {[%clk 0:02:41]}  f5 {[%clk 0:03:02]} 13. d4 {[%clk 0:02:39]}  exd4 {[%clk 0:02:59]} 14. cxd4 {[%clk 0:02:40]}  fxe4 {[%clk 0:02:57]} 15. Nxe4 {[%clk 0:02:38]}  c4 {[%clk 0:02:47]} 16. Qd2 {[%clk 0:02:06]}  d5 {[%clk 0:02:44]} 17. Nc5 {[%clk 0:02:06]}  Qd6 {[%clk 0:02:44]} 18. Ne5 {[%clk 0:01:39]}  b6 {[%clk 0:02:43]} 19. Na4 {[%clk 0:01:39]}  Rb8 {[%clk 0:02:42]} 20. Nc3 {[%clk 0:01:36]}  Bb7 {[%clk 0:02:32]} 21. b5 {[%clk 0:01:28]}  Na5 {[%clk 0:02:30]} 22. bxa6 {[%clk 0:01:21]}  Bxa6 {[%clk 0:02:30]} 23. Rad1 {[%clk 0:01:13]}  Nb3 {[%clk 0:02:30]} 24. Qe2 {[%clk 0:01:03]}  Rbe8 {[%clk 0:02:25]} 25. f4 {[%clk 0:00:54]}  Kh7 {[%clk 0:02:25]} 26. Qf3 {[%clk 0:00:42]}  Bb7 {[%clk 0:02:08]} 27. Nxc4 {[%clk 0:00:41]}  dxc4 {[%clk 0:02:03]} 28. Qxb7 {[%clk 0:00:41]}  Bxd4+ {[%clk 0:01:49]} 29. Kh1 {[%clk 0:00:41]}  Nc5 {[%clk 0:01:44]} 30. Qf3 {[%clk 0:00:21]}  Nf5 {[%clk 0:01:12]} 31. Rxe8 {[%clk 0:00:20]}  Rxe8 {[%clk 0:01:13]} 32. Nb5 {[%clk 0:00:20]}  Qd7 {[%clk 0:01:00]} 33. Nxd4 {[%clk 0:00:19]}  Nd3 {[%clk 0:01:01]} 34. Nxf5 {[%clk 0:00:18]}  Nf2+ {[%clk 0:00:59]} 35. Qxf2 {[%clk 0:00:16]}  Qxd1+ {[%clk 0:01:00]} 36. Bf1 {[%clk 0:00:17]}  gxf5 {[%clk 0:00:54]} 37. Kg1 {[%clk 0:00:16]}  Re1 {[%clk 0:00:28]} 38. Bc3 {[%clk 0:00:15]}  Re6 {[%clk 0:00:28]} 39. a4 {[%clk 0:00:08]}  Kg6 {[%clk 0:00:24]} 40. a5 {[%clk 0:00:08]}  bxa5 {[%clk 0:00:17]} 41. Qa7 {[%clk 0:00:08]}  Qf3 {[%clk 0:00:06]} 42. Qg7+ {[%clk 0:00:07]}  Kh5 {[%clk 0:00:07]} 43. Qf7+ {[%clk 0:00:07]}  Kg4 {[%clk 0:00:05]} 44. Qxe6 {[%clk 0:00:07]}  Qxc3 {[%clk 0:00:06]} 45. Be2+ {[%clk 0:00:05]}  Kh3 {[%clk 0:00:04]} 46. Qxh6# {[%clk 0:00:05]} 1-0


[Site "https://www.chess.com"]

[Event "Titled Tuesday Blitz November 01 Late 2022"]
[White "Pakleza, Zbigniew"]
[Black "Rangel, Daniel"]
[WhiteFideId "1119290"]
[BlackFideId "2124475"]
[WhiteElo "2411"]
[BlackElo "2225"]
[Result "1-0"]
[Round "04"]
[TimeControl "180+1"]
[Date "2022.11.02"]
[WhiteClock "0:00:04"]
[BlackClock "0:00:02"]

1. d4 {[%clk 0:03:00]}  Nf6 {[%clk 0:02:58]} 2. Nf3 {[%clk 0:03:01]}  e6 {[%clk 0:02:55]} 3. Bf4 {[%clk 0:03:01]}  c5 {[%clk 0:02:54]} 4. c3 {[%clk 0:03:01]}  b6 {[%clk 0:02:52]} 5. e3 {[%clk 0:03:01]}  Bb7 {[%clk 0:02:51]} 6. Nbd2 {[%clk 0:03:01]}  Be7 {[%clk 0:02:48]} 7. h3 {[%clk 0:03:01]}  O-O {[%clk 0:02:48]} 8. Bd3 {[%clk 0:03:01]}  d5 {[%clk 0:02:47]} 9. O-O {[%clk 0:02:58]}  Nbd7 {[%clk 0:02:44]} 10. Qe2 {[%clk 0:02:56]}  Ne4 {[%clk 0:02:38]} 11. Rad1 {[%clk 0:02:56]}  Ndf6 {[%clk 0:02:32]} 12. Nb1 {[%clk 0:02:42]}  c4 {[%clk 0:02:22]} 13. Bc2 {[%clk 0:02:41]}  b5 {[%clk 0:02:22]} 14. a3 {[%clk 0:02:41]}  a5 {[%clk 0:02:21]} 15. Ne5 {[%clk 0:02:40]}  b4 {[%clk 0:02:16]} 16. f3 {[%clk 0:02:29]}  Nd6 {[%clk 0:01:37]} 17. Ba4 {[%clk 0:02:28]}  Nh5 {[%clk 0:01:13]} 18. Bh2 {[%clk 0:02:26]}  b3 {[%clk 0:01:12]} 19. Nd7 {[%clk 0:02:15]}  g6 {[%clk 0:00:50]} 20. Nxf8 {[%clk 0:02:01]}  Bxf8 {[%clk 0:00:47]} 21. Nd2 {[%clk 0:01:55]}  Nc8 {[%clk 0:00:40]} 22. g4 {[%clk 0:01:52]}  Ng7 {[%clk 0:00:37]} 23. Bb5 {[%clk 0:01:21]}  a4 {[%clk 0:00:35]} 24. Nxc4 {[%clk 0:01:21]}  dxc4 {[%clk 0:00:34]} 25. Bxc4 {[%clk 0:01:22]}  Nd6 {[%clk 0:00:34]} 26. Bd3 {[%clk 0:01:21]}  Be7 {[%clk 0:00:21]} 27. c4 {[%clk 0:01:16]}  Nde8 {[%clk 0:00:20]} 28. c5 {[%clk 0:01:13]}  Bc6 {[%clk 0:00:19]} 29. Bc4 {[%clk 0:01:11]}  Nc7 {[%clk 0:00:18]} 30. e4 {[%clk 0:01:09]}  Rc8 {[%clk 0:00:13]} 31. Rd2 {[%clk 0:01:04]}  Qf8 {[%clk 0:00:10]} 32. Rfd1 {[%clk 0:00:57]}  Nge8 {[%clk 0:00:08]} 33. Kg2 {[%clk 0:00:53]}  Nf6 {[%clk 0:00:07]} 34. Be5 {[%clk 0:00:45]}  Nd7 {[%clk 0:00:06]} 35. Bg3 {[%clk 0:00:45]}  Ba8 {[%clk 0:00:05]} 36. Bd3 {[%clk 0:00:31]}  e5 {[%clk 0:00:06]} 37. d5 {[%clk 0:00:21]}  Nxc5 {[%clk 0:00:05]} 38. Bxe5 {[%clk 0:00:19]}  Nxd3 {[%clk 0:00:04]} 39. Qxd3 {[%clk 0:00:19]}  Bd6 {[%clk 0:00:04]} 40. Bxd6 {[%clk 0:00:09]}  Qxd6 {[%clk 0:00:05]} 41. Qd4 {[%clk 0:00:10]}  Ne8 {[%clk 0:00:04]} 42. Qxa4 {[%clk 0:00:08]}  Rc2 {[%clk 0:00:03]} 43. Qxb3 {[%clk 0:00:07]}  Rxd2+ {[%clk 0:00:02]} 44. Rxd2 {[%clk 0:00:08]}  h5 {[%clk 0:00:02]} 45. Qb4 {[%clk 0:00:08]}  Qc7 {[%clk 0:00:01]} 46. gxh5 {[%clk 0:00:06]}  gxh5 {[%clk 0:00:01]} 47. d6 {[%clk 0:00:06]}  Qd7 {[%clk 0:00:01]} 48. Qc5 {[%clk 0:00:04]}  Bc6 {[%clk 0:00:01]} 49. Qg5+ {[%clk 0:00:04]}  Ng7 {[%clk 0:00:02]} 50. b4 {[%clk 0:00:04]} 1-0


[Site "https://www.chess.com"]

[Event "Titled Tuesday Blitz November 01 Late 2022"]
[White "Pap, Gyula"]
[Black "Faizrakhmanov, Ramil"]
[WhiteFideId "725323"]
[BlackFideId "24103209"]
[WhiteElo "2519"]
[BlackElo "2421"]
[Result "1-0"]
[Round "04"]
[TimeControl "180+1"]
[Date "2022.11.01"]
[WhiteClock "0:01:30"]
[BlackClock "0:00:51"]

1. d4 {[%clk 0:03:00]}  Nf6 {[%clk 0:02:59]} 2. c4 {[%clk 0:03:01]}  e6 {[%clk 0:03:00]} 3. Nc3 {[%clk 0:03:01]}  Bb4 {[%clk 0:03:00]} 4. Qb3 {[%clk 0:03:02]}  c5 {[%clk 0:02:59]} 5. dxc5 {[%clk 0:03:03]}  Nc6 {[%clk 0:02:59]} 6. a3 {[%clk 0:03:01]}  Bxc5 {[%clk 0:02:57]} 7. Nf3 {[%clk 0:03:00]}  O-O {[%clk 0:02:56]} 8. Bg5 {[%clk 0:03:00]}  h6 {[%clk 0:02:45]} 9. Bh4 {[%clk 0:03:00]}  b6 {[%clk 0:02:42]} 10. e3 {[%clk 0:02:56]}  Bb7 {[%clk 0:02:42]} 11. Be2 {[%clk 0:02:56]}  Be7 {[%clk 0:02:36]} 12. O-O {[%clk 0:02:56]}  Rc8 {[%clk 0:02:36]} 13. Qa2 {[%clk 0:02:52]}  a6 {[%clk 0:02:31]} 14. Rfd1 {[%clk 0:02:48]}  Qc7 {[%clk 0:02:31]} 15. Rac1 {[%clk 0:02:47]}  d6 {[%clk 0:02:31]} 16. Nd5 {[%clk 0:02:42]}  Qd8 {[%clk 0:02:09]} 17. Nxf6+ {[%clk 0:02:33]}  Bxf6 {[%clk 0:02:09]} 18. Bxf6 {[%clk 0:02:33]}  gxf6 {[%clk 0:02:10]} 19. Nd4 {[%clk 0:02:10]}  Qc7 {[%clk 0:01:57]} 20. Nb5 {[%clk 0:02:01]}  axb5 {[%clk 0:01:52]} 21. cxb5 {[%clk 0:02:02]}  Qd7 {[%clk 0:01:45]} 22. bxc6 {[%clk 0:02:01]}  Rxc6 {[%clk 0:01:43]} 23. Qb3 {[%clk 0:01:50]}  Qc7 {[%clk 0:01:02]} 24. Rxc6 {[%clk 0:01:49]}  Bxc6 {[%clk 0:01:03]} 25. Qc3 {[%clk 0:01:32]}  Qb7 {[%clk 0:00:52]} 26. Qxf6 {[%clk 0:01:31]}  Bf3 {[%clk 0:00:51]} 27. Bxf3 {[%clk 0:01:30]} 1-0


[Site "https://www.chess.com"]

[Event "Titled Tuesday Blitz November 01 Late 2022"]
[White "Papasimakopoulos, Alexandros"]
[Black "Bambino Filho, Antonio Carlos"]
[WhiteFideId "4244125"]
[BlackFideId "2113163"]
[WhiteElo "2357"]
[BlackElo "2435"]
[Result "1/2-1/2"]
[Round "04"]
[TimeControl "180+1"]
[Date "2022.11.02"]
[WhiteClock "0:00:27"]
[BlackClock "0:00:54"]

1. d4 {[%clk 0:03:00]}  Nf6 {[%clk 0:02:59]} 2. c4 {[%clk 0:02:59]}  c5 {[%clk 0:02:59]} 3. d5 {[%clk 0:02:59]}  e6 {[%clk 0:03:00]} 4. Nc3 {[%clk 0:02:59]}  exd5 {[%clk 0:03:01]} 5. cxd5 {[%clk 0:03:00]}  d6 {[%clk 0:03:02]} 6. Nf3 {[%clk 0:03:01]}  g6 {[%clk 0:03:02]} 7. Bf4 {[%clk 0:03:01]}  Bg7 {[%clk 0:03:03]} 8. Qa4+ {[%clk 0:03:02]}  Bd7 {[%clk 0:03:00]} 9. Qb3 {[%clk 0:03:01]}  Qc7 {[%clk 0:02:59]} 10. e4 {[%clk 0:03:00]}  O-O {[%clk 0:02:59]} 11. Be2 {[%clk 0:03:01]}  Re8 {[%clk 0:02:58]} 12. Nd2 {[%clk 0:03:00]}  b5 {[%clk 0:02:51]} 13. Bxb5 {[%clk 0:02:57]}  Bxb5 {[%clk 0:02:47]} 14. Qxb5 {[%clk 0:02:57]}  Nbd7 {[%clk 0:02:45]} 15. Qc6 {[%clk 0:02:55]}  Qxc6 {[%clk 0:02:38]} 16. dxc6 {[%clk 0:02:55]}  Ne5 {[%clk 0:02:39]} 17. Bxe5 {[%clk 0:02:52]}  Rxe5 {[%clk 0:02:38]} 18. O-O-O {[%clk 0:02:50]}  Rc8 {[%clk 0:02:38]} 19. Nc4 {[%clk 0:02:51]}  Re6 {[%clk 0:02:36]} 20. Rxd6 {[%clk 0:02:47]}  Rxc6 {[%clk 0:02:33]} 21. Rxc6 {[%clk 0:02:46]}  Rxc6 {[%clk 0:02:32]} 22. Rd1 {[%clk 0:02:47]}  h5 {[%clk 0:02:28]} 23. Rd8+ {[%clk 0:02:41]}  Kh7 {[%clk 0:02:28]} 24. Ne5 {[%clk 0:02:29]}  Rc7 {[%clk 0:02:28]} 25. f4 {[%clk 0:02:27]}  Re7 {[%clk 0:02:23]} 26. Rc8 {[%clk 0:02:22]}  g5 {[%clk 0:02:13]} 27. fxg5 {[%clk 0:02:09]}  Nxe4 {[%clk 0:02:10]} 28. Nxe4 {[%clk 0:02:06]}  Rxe5 {[%clk 0:02:10]} 29. Nf6+ {[%clk 0:02:02]}  Kg6 {[%clk 0:02:06]} 30. h4 {[%clk 0:01:56]}  Bxf6 {[%clk 0:01:57]} 31. gxf6 {[%clk 0:01:56]}  Kxf6 {[%clk 0:01:56]} 32. Rc6+ {[%clk 0:01:56]}  Kf5 {[%clk 0:01:55]} 33. Rc7 {[%clk 0:01:56]}  f6 {[%clk 0:01:54]} 34. Rxa7 {[%clk 0:01:50]}  Kg4 {[%clk 0:01:54]} 35. a4 {[%clk 0:01:48]}  Kxh4 {[%clk 0:01:54]} 36. a5 {[%clk 0:01:48]}  c4 {[%clk 0:01:46]} 37. Kc2 {[%clk 0:01:46]}  Kg3 {[%clk 0:01:45]} 38. Rg7+ {[%clk 0:01:46]}  Kf2 {[%clk 0:01:45]} 39. a6 {[%clk 0:01:46]}  Ra5 {[%clk 0:01:38]} 40. a7 {[%clk 0:01:46]}  f5 {[%clk 0:01:36]} 41. Kc3 {[%clk 0:01:45]}  Ra4 {[%clk 0:01:36]} 42. Kd4 {[%clk 0:01:30]}  h4 {[%clk 0:01:27]} 43. Kc5 {[%clk 0:01:30]}  f4 {[%clk 0:01:26]} 44. Kb5 {[%clk 0:01:30]}  Ra2 {[%clk 0:01:24]} 45. Kxc4 {[%clk 0:01:30]}  f3 {[%clk 0:01:25]} 46. gxf3 {[%clk 0:01:30]}  h3 {[%clk 0:01:25]} 47. Rh7 {[%clk 0:01:26]}  Kg2 {[%clk 0:01:25]} 48. b4 {[%clk 0:00:39]}  h2 {[%clk 0:01:24]} 49. b5 {[%clk 0:00:39]}  Rxa7 {[%clk 0:01:22]} 50. Rxa7 {[%clk 0:00:39]}  h1=Q {[%clk 0:01:23]} 51. Ra3 {[%clk 0:00:39]}  Qc1+ {[%clk 0:01:19]} 52. Kb4 {[%clk 0:00:37]}  Qb2+ {[%clk 0:01:16]} 53. Ka4 {[%clk 0:00:34]}  Kg3 {[%clk 0:01:11]} 54. Rb3 {[%clk 0:00:32]}  Qa2+ {[%clk 0:01:09]} 55. Kb4 {[%clk 0:00:32]}  Qa7 {[%clk 0:01:05]} 56. Kc4 {[%clk 0:00:31]}  Qf7+ {[%clk 0:01:03]} 57. Kb4 {[%clk 0:00:29]}  Qe7+ {[%clk 0:01:03]} 58. Kc4 {[%clk 0:00:28]}  Qe6+ {[%clk 0:01:01]} 59. Kb4 {[%clk 0:00:27]}  Qe7+ {[%clk 0:01:02]} 60. Ka4 {[%clk 0:00:26]}  Qa7+ {[%clk 0:01:01]} 61. Kb4 {[%clk 0:00:27]}  Qe7+ {[%clk 0:00:54]} 1/2-1/2


[Site "https://www.chess.com"]

[Event "Titled Tuesday Blitz November 01 Late 2022"]
[White "Parkhov, Yair"]
[Black "Wessendorf, Thomas, Dr."]
[WhiteFideId "2813408"]
[BlackFideId "4604270"]
[WhiteElo "2384"]
[BlackElo "2280"]
[Result "1-0"]
[Round "04"]
[TimeControl "180+1"]
[Date "2022.11.02"]
[WhiteClock "0:00:17"]
[BlackClock "0:00:01"]

1. Nf3 {[%clk 0:03:00]}  Nf6 {[%clk 0:02:58]} 2. d4 {[%clk 0:02:59]}  e6 {[%clk 0:02:57]} 3. Bf4 {[%clk 0:02:56]}  c5 {[%clk 0:02:55]} 4. e3 {[%clk 0:02:56]}  Be7 {[%clk 0:02:51]} 5. Nbd2 {[%clk 0:02:50]}  O-O {[%clk 0:02:46]} 6. Bd3 {[%clk 0:02:49]}  b6 {[%clk 0:02:44]} 7. c3 {[%clk 0:02:42]}  Ba6 {[%clk 0:02:37]} 8. Bxa6 {[%clk 0:02:36]}  Nxa6 {[%clk 0:02:36]} 9. O-O {[%clk 0:02:36]}  d6 {[%clk 0:02:15]} 10. Qe2 {[%clk 0:02:32]}  Nc7 {[%clk 0:02:14]} 11. e4 {[%clk 0:02:29]}  Qd7 {[%clk 0:02:12]} 12. a4 {[%clk 0:02:21]}  Rfe8 {[%clk 0:02:06]} 13. Rfe1 {[%clk 0:02:16]}  Rac8 {[%clk 0:01:56]} 14. e5 {[%clk 0:01:59]}  Nfd5 {[%clk 0:01:53]} 15. Bg3 {[%clk 0:01:53]}  cxd4 {[%clk 0:01:49]} 16. Nxd4 {[%clk 0:01:53]}  dxe5 {[%clk 0:01:42]} 17. Bxe5 {[%clk 0:01:53]}  Bf6 {[%clk 0:01:39]} 18. N2f3 {[%clk 0:01:51]}  Red8 {[%clk 0:01:13]} 19. a5 {[%clk 0:01:48]}  Ne8 {[%clk 0:01:09]} 20. axb6 {[%clk 0:01:47]}  axb6 {[%clk 0:01:08]} 21. Rad1 {[%clk 0:01:48]}  Bxe5 {[%clk 0:01:07]} 22. Nxe5 {[%clk 0:01:47]}  Qb7 {[%clk 0:01:07]} 23. Qf3 {[%clk 0:01:32]}  Nd6 {[%clk 0:01:05]} 24. Rd3 {[%clk 0:01:23]}  Nf6 {[%clk 0:00:58]} 25. Red1 {[%clk 0:01:17]}  Qxf3 {[%clk 0:00:57]} 26. Ndxf3 {[%clk 0:01:15]}  Nb7 {[%clk 0:00:50]} 27. Ng5 {[%clk 0:01:11]}  Rxd3 {[%clk 0:00:41]} 28. Rxd3 {[%clk 0:01:10]}  Nc5 {[%clk 0:00:40]} 29. Rd1 {[%clk 0:01:07]}  Na4 {[%clk 0:00:39]} 30. Rd2 {[%clk 0:01:01]}  h6 {[%clk 0:00:35]} 31. Ngxf7 {[%clk 0:01:00]}  Ne4 {[%clk 0:00:34]} 32. Re2 {[%clk 0:00:47]}  Nec5 {[%clk 0:00:26]} 33. g3 {[%clk 0:00:42]}  Nd3 {[%clk 0:00:24]} 34. Nxh6+ {[%clk 0:00:35]}  gxh6 {[%clk 0:00:22]} 35. Nxd3 {[%clk 0:00:35]}  Kf7 {[%clk 0:00:21]} 36. Kg2 {[%clk 0:00:34]}  Rd8 {[%clk 0:00:19]} 37. Nf4 {[%clk 0:00:33]}  e5 {[%clk 0:00:18]} 38. Rxe5 {[%clk 0:00:33]}  Nxb2 {[%clk 0:00:18]} 39. Rh5 {[%clk 0:00:32]}  Rd6 {[%clk 0:00:15]} 40. Rf5+ {[%clk 0:00:32]}  Kg7 {[%clk 0:00:13]} 41. h4 {[%clk 0:00:30]}  Nc4 {[%clk 0:00:13]} 42. h5 {[%clk 0:00:29]}  Rd2 {[%clk 0:00:13]} 43. Kf3 {[%clk 0:00:26]}  Rc2 {[%clk 0:00:11]} 44. Ne6+ {[%clk 0:00:24]}  Kh7 {[%clk 0:00:10]} 45. Rf7+ {[%clk 0:00:23]}  Kg8 {[%clk 0:00:09]} 46. Rf8+ {[%clk 0:00:23]}  Kh7 {[%clk 0:00:09]} 47. g4 {[%clk 0:00:23]}  Rxc3+ {[%clk 0:00:08]} 48. Ke4 {[%clk 0:00:24]}  Nd6+ {[%clk 0:00:07]} 49. Ke5 {[%clk 0:00:23]}  Nb5 {[%clk 0:00:05]} 50. f4 {[%clk 0:00:20]}  Rc6 {[%clk 0:00:03]} 51. f5 {[%clk 0:00:18]}  Nc3 {[%clk 0:00:02]} 52. Kf6 {[%clk 0:00:17]}  Ne4+ {[%clk 0:00:01]} 53. Kf7 {[%clk 0:00:17]}  Nd6+ {[%clk 0:00:01]} 54. Ke7 {[%clk 0:00:17]} 1-0


[Site "https://www.chess.com"]

[Event "Titled Tuesday Blitz November 01 Late 2022"]
[White "Piesik, Piotr"]
[Black "Hnydiuk, Aleksander"]
[WhiteFideId "1136194"]
[BlackFideId "1109057"]
[WhiteElo "2756"]
[BlackElo "2533"]
[Result "1-0"]
[Round "04"]
[TimeControl "180+1"]
[Date "2022.11.02"]
[WhiteClock "0:01:09"]
[BlackClock "0:00:24"]

1. Nf3 {[%clk 0:03:00]}  Nf6 {[%clk 0:02:59]} 2. g3 {[%clk 0:03:01]}  c5 {[%clk 0:02:53]} 3. Bg2 {[%clk 0:03:02]}  g6 {[%clk 0:02:53]} 4. O-O {[%clk 0:03:02]}  Bg7 {[%clk 0:02:54]} 5. c3 {[%clk 0:03:03]}  O-O {[%clk 0:02:43]} 6. d4 {[%clk 0:03:03]}  b6 {[%clk 0:02:43]} 7. Ne5 {[%clk 0:03:01]}  d5 {[%clk 0:02:42]} 8. a4 {[%clk 0:03:01]}  Bb7 {[%clk 0:02:34]} 9. a5 {[%clk 0:03:00]}  b5 {[%clk 0:02:34]} 10. dxc5 {[%clk 0:02:59]}  Qc7 {[%clk 0:02:32]} 11. Nd3 {[%clk 0:02:49]}  Ne4 {[%clk 0:02:32]} 12. Be3 {[%clk 0:02:45]}  Na6 {[%clk 0:02:27]} 13. Qb3 {[%clk 0:02:23]}  Rab8 {[%clk 0:01:59]} 14. Qa3 {[%clk 0:02:10]}  e5 {[%clk 0:01:31]} 15. b4 {[%clk 0:02:04]}  f5 {[%clk 0:01:31]} 16. Qb3 {[%clk 0:01:47]}  Kh8 {[%clk 0:01:27]} 17. f4 {[%clk 0:01:46]}  d4 {[%clk 0:01:15]} 18. Bc1 {[%clk 0:01:44]}  Nxc3 {[%clk 0:01:04]} 19. Nxc3 {[%clk 0:01:43]}  Bxg2 {[%clk 0:00:58]} 20. Kxg2 {[%clk 0:01:44]}  dxc3 {[%clk 0:00:57]} 21. Nxe5 {[%clk 0:01:41]}  Bxe5 {[%clk 0:00:51]} 22. fxe5 {[%clk 0:01:41]}  Qxe5 {[%clk 0:00:52]} 23. Ra2 {[%clk 0:01:35]}  Nxb4 {[%clk 0:00:47]} 24. Qxb4 {[%clk 0:01:33]}  Qd5+ {[%clk 0:00:46]} 25. Rf3 {[%clk 0:01:32]}  Qxa2 {[%clk 0:00:46]} 26. Qxc3+ {[%clk 0:01:33]}  Kg8 {[%clk 0:00:45]} 27. Bb2 {[%clk 0:01:30]}  Rb7 {[%clk 0:00:24]} 28. Qh8+ {[%clk 0:01:22]}  Kf7 {[%clk 0:00:24]} 29. Qg7+ {[%clk 0:01:17]}  Ke6 {[%clk 0:00:24]} 30. Re3+ {[%clk 0:01:09]} 1-0


[Site "https://www.chess.com"]